[Event "Lueneburg Open-B 2019"]
[Site "Lueneburg"]
[Date "2019.08.03"]
[Round "1.19"]
[White "Krause, Holger"]
[Black "Vogel, Elisabeth"]
[Result "1/2-1/2"]
[ECO "C50"]
[WhiteElo "1639"]
[BlackElo "1277"]
[Annotator "NA"]
[PlyCount "76"]
[EventDate "2019.08.03"]
[EventType "swiss"]
[EventCountry "GER"]
[SourceTitle "playchess.com"]
[Source "ChessBase"]
[SourceQuality "1"]
[TimeControl "40/5400+30:1800+30"]

1. e4 {[%emt 0:00:00]} e5 {[%emt 0:00:00]} 2. Bc4 {[%emt 0:00:00]} Nf6 {[%emt 0:00:09]} 3. d3 {[%emt 0:00:00]} Bc5 {[%emt 0:01:03]} 4. Nf3 {[%emt 0:00:05]} d6 {[%emt 0:00:13]} 5. h3 {[%emt 0:00:56]} Nc6 {[%emt 0:03:24]} 6. Nc3 {[%emt 0:01:00]} h6 {[%emt 0:00:50]} 7. O-O {[%emt 0:01:11]} O-O {[%emt 0:01:11]} 8. Na4 {[%emt 0:01:22]} Bb6 {[%emt 0:02:11]} 9. Nxb6 {[%emt 0:00:51]} axb6 {[%emt 0:00:08]} 10. a3 {[%emt 0:01:48]} Be6 {[%emt 0:02:50]} 11. Ba2 {[%emt 0:03:17]} Bxa2 {[%emt 0:01:13]} 12. Rxa2 {[%emt 0:00:05]} Qd7 {[%emt 0:07:06]} 13. Bd2 {[%emt 0:05:01]} Ne7 {[%emt 0:07:28]} 14. Re1 {[%emt 0:06:00]} c5 {[%emt 0:00:22]} 15. c4 {[%emt 0:04:06]} b5 {[%emt 0:05:30]} 16. Qb3 {[%emt 0:05:28]} bxc4 {[%emt 0:00:51]} 17. Qxc4 {[%emt 0:00:42]} b5 {[%emt 0:06:45]} 18. Qc2 {[%emt 0:02:19]} Rfc8 {[%emt 0:01:10]} 19. b3 {[%emt 0:06:23]} Nc6 {[%emt 0:02:42]} 20. Qb2 {[%emt 0:03:04]} Nd4 {[%emt 0:11:12]} 21. Nxd4 {[%emt 0:01:32]} cxd4 {[%emt 0:00:13]} 22. Rc1 {[%emt 0:08:06]} Rxc1+ {[%emt 0:01:16]} 23. Qxc1 {[%emt 0:00:15]} Rc8 {[%emt 0:00:12]} 24. Rc2 {[%emt 0:01:54]} Rxc2 {[%emt 0:00:53]} 25. Qxc2 {[%emt 0:01:34]} Ne8 {[%emt 0:02:26]} 26. b4 {[%emt 0:06:17]} Nc7 {[%emt 0:01:30]} 27. f4 {[%emt 0:03:38]} Kf8 {[%emt 0:02:52]} 28. f5 {[%emt 0:01:46]} f6 {[%emt 0:00:45]} 29. g4 {[%emt 0:03:28]} d5 {[%emt 0:01:11]} 30. Qc5+ {[%emt 0:02:35]} Qe7 {[%emt 0:02:21]} 31. Qa7 {[%emt 0:02:57]} dxe4 {[%emt 0:00:20]} 32. dxe4 {[%emt 0:00:21]} Ke8 {[%emt 0:04:14]} 33. a4 {[%emt 0:01:49]} bxa4 {[%emt 0:00:25]} 34. Qxa4+ {[%emt 0:00:09]} Qd7 {[%emt 0:02:13]} 35. Qb3 {[%emt 0:01:09]} Qf7 {[%emt 0:00:16]} 36. Qa4+ {[%emt 0:01:19]} Qd7 {[%emt 0:00:11]} 37. Qb3 {[%emt 0:00:34]} Qf7 {[%emt 0:00:07]} 38. Qa4+ {[%emt 0:00:37]} Qd7 {[%emt 0:00:06]} 1/2-1/2

[Event "Lueneburg Open-B 2019"]
[Site "Lueneburg"]
[Date "2019.08.03"]
[Round "1.20"]
[White "Krueger, Dietrich"]
[Black "Kolhoff, Manfred"]
[Result "0-1"]
[ECO "D02"]
[WhiteElo "1243"]
[BlackElo "1616"]
[Annotator "NA"]
[PlyCount "58"]
[EventDate "2019.08.03"]
[EventType "swiss"]
[EventCountry "GER"]
[SourceTitle "playchess.com"]
[Source "ChessBase"]
[SourceQuality "1"]
[TimeControl "40/5400+30:1800+30"]

1. d4 {[%emt 0:00:00]} d5 {[%emt 0:00:00]} 2. Bf4 {[%emt 0:00:00]} Nf6 {[%emt 0:00:31]} 3. e3 {[%emt 0:01:07]} e6 {[%emt 0:02:14]} 4. Bd3 {[%emt 0:00:43]} Nbd7 {[%emt 0:01:11]} 5. Nf3 {[%emt 0:00:48]} c5 {[%emt 0:00:34]} 6. c3 {[%emt 0:00:39]} cxd4 {[%emt 0:01:19]} 7. exd4 {[%emt 0:01:28]} Qb6 {[%emt 0:02:15]} 8. Qc2 {[%emt 1:29:15]} Bd6 {[%emt 1:25:56]} 9. Bg3 {[%emt 0:00:00]} O-O {[%emt 0:00:00]} 10. h4 {[%emt 0:00:00]} Qc7 {[%emt 0:00:00]} 11. Be5 {[%emt 0:00:00]} Nxe5 {[%emt 0:00:00]} 12. dxe5 {[%emt 0:00:00]} Bxe5 {[%emt 0:00:00]} 13. Ng5 {[%emt 0:00:00]} g6 {[%emt 0:00:00]} 14. g3 {[%emt 0:00:00]} Ng4 {[%emt 0:00:00]} 15. f4 {[%emt 0:00:00]} Bg7 {[%emt 0:00:00]} 16. Nd2 {[%emt 0:00:00]} Qc5 {[%emt 0:00:00]} 17. O-O-O {[%emt 0:04:30]} Ne3 {[%emt 0:00:00]} 18. Nb3 {[%emt 0:00:00]} Qb6 {[%emt 0:00:00]} 19. Qf2 {[%emt 0:00:00]} Nxd1 {[%emt 0:00:00]} 20. Qxb6 {[%emt 0:00:00]} axb6 {[%emt 0:00:00]} 21. Rxd1 {[%emt 0:00:00]} e5 {[%emt 0:00:00]} 22. a3 {[%emt 0:00:00]} Bg4 {[%emt 0:00:00]} 23. Rh1 {[%emt 0:00:00]} h6 {[%emt 0:00:00]} 24. Nh3 {[%emt 0:00:00]} Rac8 {[%emt 0:00:00]} 25. Nf2 {[%emt 0:00:00]} Bf3 {[%emt 0:00:00]} 26. Rh2 {[%emt 0:00:00]} e4 {[%emt 0:00:00]} 27. Bc2 {[%emt 0:00:00]} Rfe8 {[%emt 0:00:00]} 28. Nd4 {[%emt 0:00:00]} Bxd4 {[%emt 0:00:00]} 29. cxd4 {[%emt 0:00:00]} Rc7 {[%emt 0:00:00]} 0-1

[Event "Lueneburg Open-B 2019"]
[Site "Lueneburg"]
[Date "2019.08.04"]
[Round "2.1"]
[White "Rewerts, Ingo"]
[Black "Jessen, Bjarne"]
[Result "0-1"]
[ECO "A46"]
[WhiteElo "1792"]
[BlackElo "1569"]
[Annotator "NA"]
[PlyCount "122"]
[EventDate "2019.08.03"]
[EventType "swiss"]
[EventCountry "GER"]
[SourceTitle "playchess.com"]
[Source "ChessBase"]
[SourceQuality "1"]
[TimeControl "40/5400+30:1800+30"]

1. d4 {[%emt 0:00:00]} Nf6 {[%emt 0:02:57]} 2. Nf3 {[%emt 0:00:00]} e6 {[%emt 0:00:15]} 3. Bg5 {[%emt 0:00:07]} c5 {[%emt 0:00:16]} 4. c3 {[%emt 0:00:25]} cxd4 {[%emt 0:00:38]} 5. Nxd4 {[%emt 0:00:08]} d5 {[%emt 0:00:20]} 6. Nd2 {[%emt 0:00:11]} Nc6 {[%emt 0:00:55]} 7. Nxc6 {[%emt 0:01:11]} bxc6 {[%emt 0:01:03]} 8. e4 {[%emt 0:00:54]} Be7 {[%emt 0:02:40]} 9. exd5 {[%emt 0:01:35]} cxd5 {[%emt 0:01:08]} 10. Bxf6 {[%emt 0:02:28]} Bxf6 {[%emt 0:01:27]} 11. Bb5+ {[%emt 0:00:06]} Bd7 {[%emt 0:00:52]} 12. Qa4 {[%emt 0:00:08]} Bxb5 {[%emt 0:00:34]} 13. Qxb5+ {[%emt 0:00:12]} Qd7 {[%emt 0:00:11]} 14. Qxd7+ {[%emt 0:00:12]} Kxd7 {[%emt 0:00:08]} 15. O-O-O {[%emt 0:00:16]} Ke7 {[%emt 0:01:14]} 16. Rhe1 {[%emt 0:00:14]} Rac8 {[%emt 0:02:06]} 17. Nb3 {[%emt 0:00:31]} Rhd8 {[%emt 0:01:36]} 18. Kb1 {[%emt 0:01:18]} Rd7 {[%emt 0:06:13]} 19. f4 {[%emt 0:04:21]} Kf8 {[%emt 0:13:29]} 20. Nd4 {[%emt 0:04:59]} Rc4 {[%emt 0:15:39]} 21. Ne2 {[%emt 0:08:38]} Re4 {[%emt 0:06:54]} 22. g3 {[%emt 0:04:19]} Ke7 {[%emt 0:04:51]} 23. Ng1 {[%emt 0:03:27]} Rxe1 {[%emt 0:07:37]} 24. Rxe1 {[%emt 0:02:16]} Rc7 {[%emt 0:01:00]} 25. Nf3 {[%emt 0:01:19]} Kd6 {[%emt 0:04:25]} 26. Kc2 {[%emt 0:02:34]} Kc5 {[%emt 0:04:58]} 27. Kd3 {[%emt 0:01:38]} Rb7 {[%emt 0:02:29]} 28. Re2 {[%emt 0:04:42]} Rb6 {[%emt 0:02:09]} 29. g4 {[%emt 0:04:05]} g6 {[%emt 0:01:38]} 30. g5 {[%emt 0:00:32]} Bg7 {[%emt 0:00:37]} 31. h4 {[%emt 0:00:14]} Ra6 {[%emt 0:06:10]} 32. b3 {[%emt 0:00:35]} Kd6 {[%emt 0:00:39]} 33. Rh2 {[%emt 0:00:43]} Rc6 {[%emt 0:01:03]} 34. Nd4 {[%emt 0:04:52]} Bxd4 {[%emt 0:02:04]} 35. Kxd4 {[%emt 0:00:26]} a5 {[%emt 0:00:38]} 36. h5 {[%emt 0:00:32]} a4 {[%emt 0:01:03]} 37. b4 {[%emt 0:00:28]} Rc4+ {[%emt 0:00:17]} 38. Kd3 {[%emt 0:00:11]} Rxf4 {[%emt 0:01:04]} 39. hxg6 {[%emt 0:00:19]} hxg6 {[%emt 0:02:47]} 40. Ke3 {[%emt 0:01:32]} Re4+ {[%emt 0:00:37]} 41. Kd3 {[%emt 0:30:24]} Rg4 {[%emt 0:33:11]} 42. Rh7 {[%emt 0:01:07]} Rf4 {[%emt 0:00:00]} 43. Ke3 {[%emt 0:00:00]} Rf5 {[%emt 0:00:00]} 44. a3 {[%emt 0:00:00]} e5 {[%emt 0:00:00]} 45. Rh8 {[%emt 0:00:00]} Rxg5 {[%emt 0:00:00]} 46. Rd8+ {[%emt 0:00:00]} Kc6 {[%emt 0:00:00]} 47. Rc8+ {[%emt 0:00:00]} Kb7 {[%emt 0:00:00]} 48. Rc5 {[%emt 0:00:00]} d4+ {[%emt 0:00:00]} 49. cxd4 {[%emt 0:00:00]} exd4+ {[%emt 0:00:00]} 50. Kxd4 {[%emt 0:00:00]} Rxc5 {[%emt 0:00:00]} 51. Kxc5 {[%emt 0:00:00]} g5 {[%emt 0:00:00]} 52. Kd4 {[%emt 0:00:00]} g4 {[%emt 0:00:00]} 53. Ke4 {[%emt 0:00:00]} f5+ {[%emt 0:00:00]} 54. Kf4 {[%emt 0:00:00]} Kc6 {[%emt 0:00:00]} 55. Ke3 {[%emt 0:00:00]} Kd5 {[%emt 0:00:00]} 56. Kd3 {[%emt 0:00:00]} f4 {[%emt 0:00:00]} 57. Ke2 {[%emt 0:00:00]} f3+ {[%emt 0:00:00]} 58. Kf1 {[%emt 0:00:00]} g3 {[%emt 0:00:00]} 59. Ke1 {[%emt 0:00:00]} f2+ {[%emt 0:00:00]} 60. Kf1 {[%emt 0:00:00]} Kd4 {[%emt 0:00:00]} 61. Kg2 {[%emt 0:01:24]} Ke5 {[%emt 0:10:38]} 0-1

[Event "Lueneburg Open-B 2019"]
[Site "Lueneburg"]
[Date "2019.08.04"]
[Round "2.2"]
[White "Ische, Helmut"]
[Black "Fomenkov, Alexander"]
[Result "*"]
[ECO "C42"]
[WhiteElo "1662"]
[BlackElo "1779"]
[Annotator "NA"]
[PlyCount "37"]
[EventDate "2019.08.03"]
[EventType "swiss"]
[EventCountry "GER"]
[SourceTitle "playchess.com"]
[Source "ChessBase"]
[SourceQuality "1"]
[TimeControl "40/5400+30:1800+30"]

1. e4 {[%emt 0:00:00]} e5 {[%emt 0:01:20]} 2. Nf3 {[%emt 0:00:00]} Nf6 {[%emt 0:00:21]} 3. Nxe5 {[%emt 0:00:05]} d6 {[%emt 0:00:11]} 4. Nf3 {[%emt 0:00:09]} Nxe4 {[%emt 0:00:19]} 5. Nc3 {[%emt 0:00:17]} Nxc3 {[%emt 0:00:14]} 6. dxc3 {[%emt 0:00:11]} Be7 {[%emt 0:01:03]} 7. Be3 {[%emt 0:00:55]} O-O {[%emt 0:00:23]} 8. Qd2 {[%emt 0:03:37]} Nc6 {[%emt 0:00:28]} 9. Bd3 {[%emt 0:02:47]} Re8 {[%emt 0:00:45]} 10. O-O-O {[%emt 0:00:10]} Ne5 {[%emt 0:01:01]} 11. Nxe5 {[%emt 0:07:32]} dxe5 {[%emt 0:01:21]} 12. h4 {[%emt 0:00:20]} Be6 {[%emt 0:00:48]} 13. Kb1 {[%emt 0:00:24]} c6 {[%emt 0:00:21]} 14. f3 {[%emt 0:02:21]} Qa5 {[%emt 0:00:36]} 15. c4 {[%emt 0:06:04]} Qa6 {[%emt 0:07:21]} 16. b3 {[%emt 0:03:51]} Rad8 {[%emt 1:21:28]} 17. Qe1 {[%emt 0:05:35]} f6 {[%emt 0:13:44]} 18. c5 {[%emt 0:07:54]} Qa3 {[%emt 0:00:59]} 19. Qc3 {[%emt 0:00:24]} *

[Event "Lueneburg Open-B 2019"]
[Site "Lueneburg"]
[Date "2019.08.04"]
[Round "2.2"]
[White "Ische, Helmut"]
[Black "Fomenkov, Alexander"]
[Result "0-1"]
[ECO "B22"]
[WhiteElo "1662"]
[BlackElo "1779"]
[Annotator "NA"]
[PlyCount "44"]
[EventDate "2019.08.03"]
[EventType "swiss"]
[EventCountry "GER"]
[SourceTitle "playchess.com"]
[Source "ChessBase"]
[SourceQuality "1"]
[TimeControl "40/5400+30:1800+30"]

1. e4 {[%emt 0:00:00]} c5 {[%emt 0:00:00]} 2. Nf3 {[%emt 0:00:00]} d6 {[%emt 0:00:00]} 3. c3 {[%emt 0:00:00]} Nc6 {[%emt 0:01:23]} 4. d4 {[%emt 0:00:07]} cxd4 {[%emt 0:01:04]} 5. cxd4 {[%emt 0:00:08]} Bg4 {[%emt 0:01:03]} 6. Be2 {[%emt 0:01:42]} g6 {[%emt 0:02:10]} 7. Nc3 {[%emt 0:04:19]} Bg7 {[%emt 0:01:02]} 8. Be3 {[%emt 0:00:22]} Bxf3 {[%emt 0:07:16]} 9. Bxf3 {[%emt 0:00:18]} Qb6 {[%emt 1:20:32]} 10. Nd5 {[%emt 0:07:03]} Qa5+ {[%emt 0:00:00]} 11. Bd2 {[%emt 0:00:22]} Qd8 {[%emt 0:00:00]} 12. Bc3 {[%emt 0:01:27]} e6 {[%emt 0:00:00]} 13. Ne3 {[%emt 0:00:34]} Nge7 {[%emt 0:00:00]} 14. O-O {[%emt 0:02:18]} O-O {[%emt 0:00:00]} 15. Rc1 {[%emt 0:00:46]} d5 {[%emt 0:00:00]} 16. e5 {[%emt 0:02:02]} Qb6 {[%emt 0:00:00]} 17. Ng4 {[%emt 0:13:52]} Nf5 {[%emt 0:00:00]} 18. Nf6+ {[%emt 0:15:44]} Bxf6 {[%emt 0:00:00]} 19. exf6 {[%emt 0:00:05]} Qd8 {[%emt 0:00:00]} 20. g4 {[%emt 0:01:29]} Nh4 {[%emt 0:00:00]} 21. g5 {[%emt 0:00:48]} Qd6 {[%emt 0:00:00]} 22. Qd3 {[%emt 0:01:52]} Qf4 {[%emt 0:00:00]} 0-1

[Event "Lueneburg Open-B 2019"]
[Site "Lueneburg"]
[Date "2019.08.04"]
[Round "2.3"]
[White "Kolhoff, Manfred"]
[Black "Groth, Matthias"]
[Result "*"]
[ECO "B22"]
[WhiteElo "1616"]
[BlackElo "1737"]
[Annotator "NA"]
[PlyCount "34"]
[EventDate "2019.08.03"]
[EventType "swiss"]
[EventCountry "GER"]
[SourceTitle "playchess.com"]
[Source "ChessBase"]
[SourceQuality "1"]
[TimeControl "40/5400+30:1800+30"]

1. e4 {[%emt 0:00:00]} c5 {[%emt 0:00:00]} 2. Nf3 {[%emt 0:00:00]} d6 {[%emt 0:00:00]} 3. c3 {[%emt 0:00:00]} Nc6 {[%emt 0:01:23]} 4. d4 {[%emt 0:00:07]} cxd4 {[%emt 0:01:04]} 5. cxd4 {[%emt 0:00:08]} Bg4 {[%emt 0:01:03]} 6. Be2 {[%emt 0:01:42]} g6 {[%emt 0:02:10]} 7. Nc3 {[%emt 0:04:19]} Bg7 {[%emt 0:01:02]} 8. Be3 {[%emt 0:00:22]} Bxf3 {[%emt 0:07:16]} 9. Bxf3 {[%emt 0:00:18]} Qb6 {[%emt 1:20:32]} 10. Nd5 {[%emt 0:07:03]} Qa5+ {[%emt 0:00:00]} 11. Bd2 {[%emt 0:00:22]} Qd8 {[%emt 0:00:00]} 12. Bc3 {[%emt 0:01:27]} e6 {[%emt 0:00:00]} 13. Ne3 {[%emt 0:00:34]} Nge7 {[%emt 0:00:00]} 14. O-O {[%emt 0:02:18]} O-O {[%emt 0:02:30]} 15. Rc1 {[%emt 0:00:46]} d5 {[%emt 0:00:00]} 16. e5 {[%emt 0:02:02]} Qb6 {[%emt 0:00:00]} 17. Ng4 {[%emt 0:13:52]} Nf5 {[%emt 0:00:00]} *

[Event "Lueneburg Open-B 2019"]
[Site "Lueneburg"]
[Date "2019.08.04"]
[Round "2.3"]
[White "Kolhoff, Manfred"]
[Black "Groth, Matthias"]
[Result "1-0"]
[ECO "D32"]
[WhiteElo "1616"]
[BlackElo "1737"]
[Annotator "NA"]
[PlyCount "55"]
[EventDate "2019.08.03"]
[EventType "swiss"]
[EventCountry "GER"]
[SourceTitle "playchess.com"]
[Source "ChessBase"]
[SourceQuality "1"]
[TimeControl "40/5400+30:1800+30"]

1. d4 {[%emt 0:00:00]} d5 {[%emt 0:00:00]} 2. c4 {[%emt 0:00:00]} e6 {[%emt 0:00:00]} 3. Nc3 {[%emt 0:00:31]} c5 {[%emt 0:00:17]} 4. cxd5 {[%emt 0:01:05]} exd5 {[%emt 0:00:09]} 5. Nf3 {[%emt 0:01:41]} Nf6 {[%emt 0:00:26]} 6. Bg5 {[%emt 0:00:56]} Be7 {[%emt 0:00:30]} 7. e3 {[%emt 0:00:56]} O-O {[%emt 0:00:12]} 8. Be2 {[%emt 0:00:26]} Be6 {[%emt 0:00:11]} 9. O-O {[%emt 0:00:38]} a6 {[%emt 0:00:22]} 10. a4 {[%emt 0:01:59]} Nbd7 {[%emt 0:00:14]} 11. Rc1 {[%emt 0:01:08]} Rc8 {[%emt 0:07:07]} 12. Ne5 {[%emt 0:05:41]} Nxe5 {[%emt 1:26:32]} 13. dxe5 {[%emt 0:00:14]} Ne8 {[%emt 0:00:00]} 14. Bxe7 {[%emt 0:00:47]} Qxe7 {[%emt 0:00:00]} 15. Nxd5 {[%emt 0:01:47]} Qh4 {[%emt 0:00:00]} 16. Nf4 {[%emt 0:06:27]} Qg5 {[%emt 0:00:00]} 17. Nxe6 {[%emt 1:14:14]} fxe6 18. f4 {[%emt 0:00:00]} Qd8 {[%emt 0:03:00]} 19. Bg4 {[%emt 0:00:00]} Qb6 {[%emt 0:00:00]} 20. Qd7 {[%emt 0:00:00]} Rc6 {[%emt 0:00:00]} 21. f5 {[%emt 0:00:00]} Nc7 {[%emt 0:00:00]} 22. fxe6 {[%emt 0:00:00]} Nxe6 {[%emt 0:00:00]} 23. Bxe6+ {[%emt 0:00:00]} Rxe6 {[%emt 0:00:00]} 24. Rxf8+ {[%emt 0:00:00]} Kxf8 {[%emt 0:00:00]} 25. Rf1+ {[%emt 0:00:00]} Kg8 {[%emt 0:00:00]} 26. Qc8+ {[%emt 0:00:00]} Qd8 {[%emt 0:00:00]} 27. Qxd8+ {[%emt 0:00:00]} Re8 {[%emt 0:00:00]} 28. Qxe8# {[%emt 0:00:00]} 1-0

[Event "Lueneburg Open-B 2019"]
[Site "Lueneburg"]
[Date "2019.08.04"]
[Round "2.4"]
[White "Wiese, Uwe"]
[Black "Goldmann, David"]
[Result "1-0"]
[ECO "C54"]
[WhiteElo "1737"]
[BlackElo "1403"]
[Annotator "NA"]
[PlyCount "71"]
[EventDate "2019.08.03"]
[EventType "swiss"]
[EventCountry "GER"]
[SourceTitle "playchess.com"]
[Source "ChessBase"]
[SourceQuality "1"]
[TimeControl "40/5400+30:1800+30"]

1. e4 {[%emt 0:00:00]} e5 {[%emt 0:00:00]} 2. Nf3 {[%emt 0:00:00]} Nc6 {[%emt 0:00:00]} 3. Bc4 {[%emt 0:00:14]} Bc5 {[%emt 0:00:16]} 4. c3 {[%emt 0:00:07]} Nf6 {[%emt 0:00:29]} 5. d4 {[%emt 0:00:11]} exd4 {[%emt 0:03:26]} 6. cxd4 {[%emt 0:00:20]} Bb4+ {[%emt 0:01:55]} 7. Bd2 {[%emt 0:00:10]} Bxd2+ {[%emt 0:01:13]} 8. Nbxd2 {[%emt 0:00:11]} d5 {[%emt 0:01:00]} 9. exd5 {[%emt 0:00:09]} Nxd5 {[%emt 0:00:10]} 10. Qb3 {[%emt 0:00:09]} Nce7 {[%emt 0:05:00]} 11. O-O {[%emt 0:00:29]} O-O {[%emt 0:00:07]} 12. Rfe1 {[%emt 0:00:16]} Nb6 {[%emt 0:07:12]} 13. Bd3 {[%emt 0:04:09]} Nf5 {[%emt 0:22:49]} 14. Re4 {[%emt 0:01:01]} Be6 {[%emt 0:04:16]} 15. Rxe6 {[%emt 0:02:07]} fxe6 {[%emt 0:00:57]} 16. Qxe6+ {[%emt 0:00:11]} Kh8 {[%emt 0:00:12]} 17. Bxf5 {[%emt 0:00:24]} Re8 {[%emt 0:01:18]} 18. Qb3 {[%emt 0:00:37]} Qf6 {[%emt 0:02:10]} 19. Bd3 {[%emt 0:02:09]} Re7 {[%emt 0:02:51]} 20. Rc1 {[%emt 0:07:48]} c6 {[%emt 0:01:05]} 21. Ne5 {[%emt 0:03:57]} Qf4 {[%emt 0:04:01]} 22. Nef3 {[%emt 0:05:21]} Rae8 {[%emt 0:01:28]} 23. Qc2 {[%emt 0:02:26]} Qh6 {[%emt 0:05:40]} 24. Ne5 {[%emt 0:01:19]} Nd5 {[%emt 0:00:35]} 25. a3 {[%emt 0:02:45]} Nf4 {[%emt 0:01:55]} 26. Bc4 {[%emt 0:00:34]} Rf8 {[%emt 0:02:02]} 27. Ndf3 {[%emt 0:02:50]} Qf6 {[%emt 0:03:11]} 28. Re1 {[%emt 0:06:14]} Rfe8 {[%emt 0:05:53]} 29. h3 {[%emt 0:03:13]} Nd5 {[%emt 0:05:15]} 30. Bd3 {[%emt 0:02:04]} g6 {[%emt 0:03:55]} 31. Bxg6 {[%emt 0:09:23]} hxg6 {[%emt 0:02:11]} 32. Nxg6+ {[%emt 0:45:12]} Kg7 {[%emt 0:13:28]} 33. Nxe7 {[%emt 0:00:00]} Rxe7 {[%emt 0:00:00]} 34. Rxe7+ {[%emt 0:00:00]} Nxe7 {[%emt 0:00:00]} 35. Qe4 {[%emt 0:00:00]} Nf5 {[%emt 0:00:00]} 36. Qe5 {[%emt 0:00:00]} 1-0

[Event "Lueneburg Open-B 2019"]
[Site "Lueneburg"]
[Date "2019.08.04"]
[Round "2.5"]
[White "Seeber, Helmut"]
[Black "Thomas, Andreas"]
[Result "1-0"]
[ECO "B08"]
[WhiteElo "1580"]
[BlackElo "1726"]
[Annotator "NA"]
[PlyCount "57"]
[EventDate "2019.08.03"]
[EventType "swiss"]
[EventCountry "GER"]
[SourceTitle "playchess.com"]
[Source "ChessBase"]
[SourceQuality "1"]
[TimeControl "40/5400+30:1800+30"]

1. e4 {[%emt 0:00:00]} g6 {[%emt 0:00:00]} 2. d4 {[%emt 0:00:00]} Bg7 {[%emt 0:00:00]} 3. Nc3 {[%emt 0:00:00]} Nf6 {[%emt 0:00:05]} 4. Nf3 {[%emt 0:00:59]} O-O {[%emt 0:00:16]} 5. Be2 {[%emt 0:00:36]} d6 {[%emt 0:00:08]} 6. O-O {[%emt 0:01:19]} e6 {[%emt 0:02:10]} 7. e5 {[%emt 0:05:58]} dxe5 {[%emt 0:03:44]} 8. dxe5 {[%emt 0:00:06]} Nd5 {[%emt 0:02:25]} 9. Bg5 {[%emt 0:01:55]} Qd7 {[%emt 0:05:07]} 10. Ne4 {[%emt 0:12:56]} f6 {[%emt 0:01:08]} 11. exf6 {[%emt 0:02:48]} Nxf6 {[%emt 0:00:21]} 12. Nxf6+ {[%emt 0:00:42]} Bxf6 {[%emt 0:00:08]} 13. Bxf6 {[%emt 1:09:11]} Rxf6 {[%emt 1:20:58]} 14. Bc4 {[%emt 0:00:00]} Kg7 {[%emt 0:00:00]} 15. Qe2 {[%emt 0:00:00]} Nc6 {[%emt 0:00:00]} 16. Rad1 {[%emt 0:00:00]} Qe7 {[%emt 0:00:00]} 17. Rfe1 {[%emt 0:00:00]} Bd7 {[%emt 0:00:00]} 18. Rd2 {[%emt 0:00:00]} Na5 {[%emt 0:00:00]} 19. Bb5 {[%emt 0:00:00]} c6 {[%emt 0:00:00]} 20. Red1 {[%emt 0:00:00]} Rd8 {[%emt 0:00:00]} 21. Ne5 {[%emt 0:00:00]} Kg8 {[%emt 0:00:00]} 22. Rxd7 {[%emt 0:00:00]} Rxd7 {[%emt 0:00:00]} 23. Rxd7 {[%emt 0:00:00]} Qb4 {[%emt 0:00:00]} 24. Bd3 {[%emt 0:00:00]} Qf4 {[%emt 0:00:00]} 25. Qe3 {[%emt 0:00:00]} Qb4 {[%emt 0:00:00]} 26. b3 {[%emt 0:00:00]} Qc3 {[%emt 0:00:00]} 27. Ng4 {[%emt 0:00:00]} Rf8 {[%emt 0:00:00]} 28. Qxe6+ {[%emt 0:00:00]} Kh8 {[%emt 0:00:00]} 29. Qe7 {[%emt 0:00:00]} 1-0

[Event "Lueneburg Open-B 2019"]
[Site "Lueneburg"]
[Date "2019.08.04"]
[Round "2.5"]
[White "Seeber, Helmut"]
[Black "Thomas, Andreas"]
[Result "*"]
[ECO "C54"]
[WhiteElo "1580"]
[BlackElo "1726"]
[Annotator "NA"]
[PlyCount "42"]
[EventDate "2019.08.03"]
[EventType "swiss"]
[EventCountry "GER"]
[SourceTitle "playchess.com"]
[Source "ChessBase"]
[SourceQuality "1"]
[TimeControl "40/5400+30:1800+30"]

1. e4 {[%emt 0:00:00]} e5 {[%emt 0:00:00]} 2. Nf3 {[%emt 0:00:00]} Nc6 {[%emt 0:00:00]} 3. Bc4 {[%emt 0:00:14]} Bc5 {[%emt 0:00:16]} 4. c3 {[%emt 0:00:07]} Nf6 {[%emt 0:00:29]} 5. d4 {[%emt 0:00:11]} exd4 {[%emt 0:03:26]} 6. cxd4 {[%emt 0:00:20]} Bb4+ {[%emt 0:01:55]} 7. Bd2 {[%emt 0:00:10]} Bxd2+ {[%emt 0:01:13]} 8. Nbxd2 {[%emt 0:00:11]} d5 {[%emt 0:01:00]} 9. exd5 {[%emt 0:00:09]} Nxd5 {[%emt 0:00:10]} 10. Qb3 {[%emt 0:00:09]} Nce7 {[%emt 0:05:00]} 11. O-O {[%emt 0:00:29]} O-O {[%emt 0:00:07]} 12. Rfe1 {[%emt 0:00:16]} Nb6 {[%emt 0:07:12]} 13. Bd3 {[%emt 0:04:09]} Nf5 {[%emt 0:22:49]} 14. Re4 {[%emt 1:30:35]} Be6 {[%emt 0:04:16]} 15. Rxe6 {[%emt 0:02:07]} fxe6 {[%emt 0:00:57]} 16. Qxe6+ {[%emt 0:00:11]} Kh8 {[%emt 0:00:12]} 17. Bxf5 {[%emt 0:00:24]} Re8 {[%emt 0:01:18]} 18. Qb3 {[%emt 0:00:37]} Qf6 {[%emt 0:02:10]} 19. Bd3 {[%emt 0:02:09]} Re7 {[%emt 0:02:51]} 20. Rc1 {[%emt 0:07:48]} c6 {[%emt 0:01:05]} 21. Ne5 {[%emt 0:03:57]} Qf4 {[%emt 0:04:01]} *

[Event "Lueneburg Open-B 2019"]
[Site "Lueneburg"]
[Date "2019.08.04"]
[Round "2.7"]
[White "Rempe, Janne"]
[Black "Domschke, Stephan"]
[Result "0-1"]
[ECO "C42"]
[WhiteElo "1594"]
[BlackElo "1671"]
[Annotator "NA"]
[PlyCount "58"]
[EventDate "2019.08.03"]
[EventType "swiss"]
[EventCountry "GER"]
[SourceTitle "playchess.com"]
[Source "ChessBase"]
[SourceQuality "1"]
[TimeControl "40/5400+30:1800+30"]

1. e4 {[%emt 0:00:00]} e5 {[%emt 0:01:20]} 2. Nf3 {[%emt 0:00:00]} Nf6 {[%emt 0:00:21]} 3. Nxe5 {[%emt 0:00:05]} d6 {[%emt 0:00:11]} 4. Nf3 {[%emt 0:00:09]} Nxe4 {[%emt 0:00:19]} 5. Nc3 {[%emt 0:00:17]} Nxc3 {[%emt 0:00:14]} 6. dxc3 {[%emt 0:00:11]} Be7 {[%emt 0:01:03]} 7. Be3 {[%emt 0:00:55]} O-O {[%emt 0:00:23]} 8. Qd2 {[%emt 0:03:37]} Nc6 {[%emt 0:00:28]} 9. Bd3 {[%emt 0:02:47]} Re8 {[%emt 0:00:45]} 10. O-O-O {[%emt 0:00:10]} Ne5 {[%emt 0:01:01]} 11. Nxe5 {[%emt 0:07:32]} dxe5 {[%emt 0:01:21]} 12. h4 {[%emt 0:00:20]} Be6 {[%emt 0:00:48]} 13. Kb1 {[%emt 0:00:24]} c6 {[%emt 0:00:21]} 14. f3 {[%emt 0:02:21]} Qa5 {[%emt 0:00:36]} 15. c4 {[%emt 0:06:04]} Qa6 {[%emt 0:07:21]} 16. b3 {[%emt 0:03:51]} Rad8 {[%emt 0:07:45]} 17. Qe1 {[%emt 0:05:35]} f6 {[%emt 0:13:44]} 18. c5 {[%emt 0:07:54]} Qa3 {[%emt 0:00:59]} 19. Qc3 {[%emt 0:00:24]} a5 {[%emt 0:11:47]} 20. Qb2 {[%emt 0:05:38]} Bxc5 {[%emt 0:00:53]} 21. Qxa3 {[%emt 0:00:48]} Bxa3 {[%emt 0:00:13]} 22. g4 {[%emt 0:00:02]} a4 {[%emt 0:02:36]} 23. g5 {[%emt 0:02:01]} f5 {[%emt 0:01:03]} 24. h5 {[%emt 0:04:24]} axb3 {[%emt 0:01:43]} 25. cxb3 {[%emt 0:01:48]} f4 {[%emt 0:09:45]} 26. Bc1 {[%emt 0:01:44]} Rxd3 {[%emt 0:07:14]} 27. Rxd3 {[%emt 0:00:09]} Bf5 {[%emt 0:00:03]} 28. Bxa3 {[%emt 0:00:07]} Bxd3+ {[%emt 0:00:15]} 29. Kc1 {[%emt 0:00:34]} Be2 {[%emt 0:00:13]} 0-1